bitfinex/quotes_BTCUSD_20250226
["timestamp","ask_amount","ask_price","bid_price","bid_amount"]
[1740546560984,0.0004237,89053.0,89052.0,0.01095431]
[1740546561320,0.0004237,89053.0,89048.0,0.0815]
[1740546561479,0.0004237,89053.0,89052.0,0.01095431]
[1740546561816,0.0004237,89053.0,89052.0,0.01795431]
[1740546563551,0.0004237,89053.0,89052.0,0.18639431]
[1740546563750,0.0004237,89053.0,89052.0,0.26149431]
[1740546564136,0.0004237,89053.0,89052.0,0.09305431]
[1740546564712,0.0004237,89053.0,89052.0,0.10005431]
[1740546566037,0.0004237,89053.0,89052.0,0.26849431]
[1740546566889,0.0004237,89053.0,89052.0,0.10005431]
[1740546572660,0.3,89065.0,89052.0,0.10005431]
[1740546573318,0.468416,89065.0,89052.0,0.10005431]
[1740546573686,0.468416,89065.0,89052.0,0.09305431]
[1740546574016,0.32715351,89065.0,89052.0,0.09705431]
[1740546574418,0.32715351,89065.0,89052.0,0.09005431]
[1740546574661,0.32715351,89065.0,89052.0,0.09505431]
[1740546575023,0.02715351,89065.0,89052.0,0.09505431]
[1740546575226,0.168413,89067.0,89052.0,0.09505431]
[1740546577321,0.168413,89067.0,89052.0,0.09005431]
[1740546577593,0.168413,89067.0,89052.0,0.08605431]
[1740546577775,0.168413,89067.0,89052.0,0.09305431]
[1740546578554,0.3,89065.0,89052.0,0.09305431]
[1740546579181,0.3,89065.0,89052.0,0.0821]
[1740546579362,0.3,89065.0,89053.0,0.01109947]
[1740546580457,0.468415,89066.0,89053.0,0.01109947]
[1740546580615,0.168417,89065.0,89053.0,0.01109947]
[1740546581553,0.168417,89065.0,89053.0,0.01409947]
[1740546583192,0.168417,89065.0,89053.0,0.01109947]
[1740546583535,0.3,89066.0,89053.0,0.01509947]
[1740546583536,0.168419,89064.0,89053.0,0.01509947]
[1740546583743,0.168416,89065.0,89053.0,0.01509947]
[1740546583875,0.168419,89064.0,89053.0,0.01509947]
[1740546584082,0.16842,89063.0,89053.0,0.01509947]
[1740546584296,0.16842,89063.0,89053.0,0.01109947]
[1740546584608,0.16842,89063.0,89053.0,0.01909947]
[1740546584813,0.16842,89063.0,89053.0,0.01409947]
[1740546585150,0.224553,89066.0,89053.0,0.01809947]
[1740546585151,0.3,89066.0,89053.0,0.01809947]
[1740546585297,0.3,89064.0,89053.0,0.01809947]
[1740546585474,0.3,89064.0,89053.0,0.01409947]
[1740546585898,0.3,89064.0,89053.0,0.01609947]
[1740546586106,0.468418,89064.0,89053.0,0.01609947]
[1740546586456,0.468418,89064.0,89053.0,0.01509947]
[1740546586674,0.468437,89054.0,89053.0,0.01909947]
[1740546586821,0.468437,89054.0,89053.0,0.004]
[1740546587006,0.468437,89054.0,89053.0,0.008]
[1740546587435,0.468437,89054.0,89053.0,0.004]
[1740546587874,0.468437,89054.0,89053.0,0.009]
[1740546588631,0.468437,89054.0,89053.0,0.005]
[1740546588869,0.468437,89054.0,89053.0,0.01]
[1740546589097,0.3,89053.0,89052.0,0.000848]
[1740546589310,0.468439,89053.0,89052.0,0.000848]
[1740546590497,0.468439,89053.0,89052.0,0.006848]
[1740546590652,0.468439,89053.0,89052.0,0.011848]
[1740546592222,0.58229596,89053.0,89052.0,0.011848]
[1740546594117,0.468439,89053.0,89052.0,0.011848]
[1740546596650,0.47697309,89053.0,89052.0,0.011848]
[1740546601202,0.47697309,89053.0,89052.0,0.006848]
[1740546601629,0.47697309,89053.0,89052.0,0.000848]
[1740546601933,0.47697309,89053.0,89052.0,0.006848]
[1740546602074,0.47697309,89053.0,89052.0,0.011848]
[1740546604614,0.00853409,89053.0,89052.0,0.011848]
[1740546604751,0.3,89054.0,89052.0,0.310688]
[1740546604952,0.01172694,89070.0,89055.0,0.0804]
[1740546605269,0.3,89070.0,89055.0,0.0804]
[1740546605462,0.49299572,89070.0,89055.0,0.0804]
[1740546605662,0.02458972,89070.0,89057.0,0.0804]
[1740546605871,0.168399,89074.0,89057.0,0.0804]
[1740546606068,0.224537,89073.0,89057.0,0.0804]
[1740546606272,0.16841,89068.0,89057.0,0.0804]
[1740546606465,0.168414,89067.0,89057.0,0.0804]
[1740546606665,0.3,89070.0,89057.0,0.0804]
[1740546606871,0.168417,89065.0,89057.0,0.0854]
[1740546607105,0.168417,89065.0,89057.0,0.0804]
[1740546607311,0.19217235,89070.0,89057.0,0.0804]
[1740546607511,0.3,89069.0,89057.0,0.0804]
[1740546607676,0.468408,89069.0,89057.0,0.0854]
[1740546608214,0.3,89067.0,89057.0,0.0804]
[1740546608358,0.3,89067.0,89057.0,0.0844]
[1740546608563,0.3,89067.0,89058.0,0.01107467]
[1740546609186,0.3,89068.0,89058.0,0.01107467]
[1740546610140,0.3,89068.0,89058.0,0.01707467]
[1740546610365,0.02376435,89070.0,89058.0,0.01107467]
[1740546610492,0.3,89069.0,89058.0,0.01107467]
[1740546610996,0.3,89069.0,89058.0,0.01607467]
[1740546611195,0.3,89069.0,89059.0,0.0814]
[1740546611402,0.3,89069.0,89058.0,0.18450367]
[1740546611403,0.00054986,89072.0,89061.0,0.0814]
[1740546611621,0.00054986,89072.0,89062.0,0.0110674]
[1740546611939,0.3,89071.0,89062.0,0.0110674]
[1740546612376,0.3,89071.0,89061.0,0.0814]
[1740546612964,0.3,89069.0,89062.0,0.0160674]
[1740546613185,0.3,89068.0,89062.0,0.0160674]
[1740546613476,0.3,89068.0,89062.0,0.3251]
[1740546613882,0.3,89068.0,89063.0,0.01106558]
[1740546614239,0.168407,89070.0,89063.0,0.01106558]
[1740546615197,0.19281534,89071.0,89063.0,0.01106558]
[1740546615406,0.00054986,89072.0,89064.0,0.0455]
[1740546615607,0.00054986,89072.0,89070.0,0.0809]
[1740546615819,0.00054986,89072.0,89071.0,0.01105104]
[1740546615976,0.02444475,89072.0,89071.0,0.01105104]
[1740546616408,0.02444475,89072.0,89071.0,0.08815104]
[1740546617318,0.02444475,89072.0,89071.0,0.62835504]
[1740546617908,0.02444475,89072.0,89071.0,0.63435504]
[1740546618265,0.02444475,89072.0,89071.0,0.62835504]
[1740546618487,0.02444475,89072.0,89071.0,0.63535504]
[1740546618684,0.02444475,89072.0,89071.0,0.64235504]
[1740546618885,0.02444475,89072.0,89071.0,0.63535504]
[1740546619086,0.02444475,89072.0,89071.0,0.64235504]
[1740546619285,0.00054986,89072.0,89071.0,0.63535504]
[1740546619691,0.00054986,89072.0,89071.0,0.64235504]
[1740546619937,0.00054986,89072.0,89071.0,0.63535504]
[1740546620163,0.00054986,89072.0,89071.0,0.64235504]
[1740546621123,0.00054986,89072.0,89071.0,0.47395104]
[1740546621824,0.00054986,89072.0,89071.0,0.42725104]
[1740546621825,0.16895286,89072.0,89071.0,0.42725104]
[1740546622035,0.16895286,89072.0,89071.0,0.42025104]
[1740546622242,0.16895286,89072.0,89071.0,0.02505104]
[1740546622392,0.16895286,89072.0,89071.0,0.014]
[1740546622616,0.16895286,89072.0,89071.0,0.01805104]
[1740546622805,0.16895286,89072.0,89071.0,0.014]
[1740546623756,0.16895286,89072.0,89071.0,0.007]
[1740546623937,0.16895286,89072.0,89071.0,0.014]
[1740546624090,0.16895286,89072.0,89071.0,0.007]
[1740546624290,0.16895286,89072.0,89071.0,0.014]
[1740546624636,0.16895286,89072.0,89071.0,0.007]
[1740546624811,0.16895286,89072.0,89071.0,0.013]
[1740546625011,0.16895286,89072.0,89071.0,0.006]
[1740546625216,0.16895286,89072.0,89071.0,0.013]
[1740546625640,0.16895286,89072.0,89071.0,0.006]
[1740546625801,0.16895286,89072.0,89071.0,0.013]
[1740546625995,0.16895286,89072.0,89071.0,0.007]
[1740546626406,0.16895286,89072.0,89071.0,0.013]
[1740546628520,0.55654825,89072.0,89071.0,0.013]
[1740546631466,0.46895286,89072.0,89071.0,0.013]
[1740546632180,0.3,89071.0,89068.0,0.000848]
[1740546632389,0.168431,89057.0,89056.0,0.4016]
[1740546632544,0.168429,89058.0,89056.0,0.4016]
[1740546632749,0.3,89071.0,89056.0,0.4016]
[1740546633008,0.168427,89060.0,89056.0,0.4016]
[1740546633162,0.224563,89062.0,89056.0,0.4016]
[1740546633518,0.168428,89059.0,89056.0,0.4016]
[1740546634015,0.168425,89060.0,89056.0,0.4016]
[1740546634225,0.168423,89062.0,89056.0,0.4086]
[1740546634426,0.168425,89061.0,89056.0,0.4156]
[1740546634587,0.168424,89061.0,89056.0,0.4016]
[1740546634831,0.3,89060.0,89056.0,0.4086]
[1740546634983,0.3,89060.0,89056.0,0.4156]
[1740546635189,0.3,89060.0,89057.0,0.0105598]
[1740546635936,0.3,89065.0,89057.0,0.0105598]
[1740546636139,0.00054986,89072.0,89060.0,0.048]
[1740546636335,0.00054986,89072.0,89063.0,0.168419]
[1740546636512,0.00054986,89072.0,89064.0,0.0774]
[1740546636717,0.00054986,89072.0,89064.0,0.08694975]
[1740546637107,0.00054986,89072.0,89064.0,0.41104975]
[1740546637316,0.00054986,89072.0,89064.0,0.33564975]
[1740546637745,0.00054986,89072.0,89064.0,0.33864975]
[1740546638498,0.00054986,89072.0,89064.0,0.50706775]
[1740546638868,0.00054986,89072.0,89064.0,0.33864975]
[1740546639300,0.168416,89065.0,89064.0,0.33864975]
[1740546639782,0.468416,89065.0,89064.0,0.34064975]
[1740546640137,0.468416,89065.0,89064.0,0.33864975]
[1740546640540,0.468416,89065.0,89064.0,0.34064975]
[1740546640751,0.3,89065.0,89064.0,0.34149775]
[1740546640953,0.301,89065.0,89064.0,0.34749775]
[1740546641158,0.469416,89065.0,89064.0,0.34749775]
[1740546642384,0.56132239,89065.0,89064.0,0.34749775]
[1740546642623,0.56132239,89065.0,89064.0,0.336948]
[1740546642849,0.56132239,89065.0,89064.0,0.34749775]
[1740546643060,0.56132239,89065.0,89064.0,0.02239775]
[1740546643252,0.56132239,89065.0,89064.0,0.011848]
[1740546644550,0.56132239,89065.0,89053.0,0.01108376]
[1740546644551,0.468437,89054.0,89053.0,0.01108376]
[1740546644958,0.468437,89054.0,89053.0,0.0216493]
[1740546645337,0.468437,89054.0,89053.0,0.01108376]
[1740546646557,0.469437,89054.0,89053.0,0.01708376]
[1740546647113,0.468437,89054.0,89053.0,0.01108376]
[1740546647482,0.468437,89054.0,89053.0,0.01508376]
[1740546647617,0.58229396,89054.0,89053.0,0.01308376]
[1740546647814,0.58229396,89054.0,89053.0,0.01608376]
[1740546648019,0.58229396,89054.0,89053.0,0.01408376]
[1740546648249,0.58229396,89054.0,89053.0,0.01108376]
[1740546649020,0.224579,89056.0,89053.0,0.01108376]
[1740546650012,0.168437,89054.0,89053.0,0.01108376]
[1740546650368,0.168437,89054.0,89053.0,0.01308376]
[1740546650786,0.168437,89054.0,89053.0,0.01108376]
[1740546650987,0.168437,89054.0,89053.0,0.01208376]
[1740546651383,0.168437,89054.0,89053.0,0.01108376]
[1740546651584,0.168437,89054.0,89053.0,0.01208376]
[1740546652265,0.21141127,89054.0,89053.0,0.01293176]
[1740546656986,0.468437,89054.0,89053.0,0.01293176]
[1740546659447,0.468437,89054.0,89053.0,0.01193176]
[1740546660388,0.469437,89054.0,89053.0,0.01293176]
[1740546660641,0.469437,89054.0,89053.0,0.01193176]
[1740546660856,0.168456,89044.0,89043.0,0.0818]
[1740546661003,0.468461,89041.0,89040.0,0.4072476]
[1740546661994,0.46854576,89041.0,89040.0,0.4072476]
[1740546663241,0.55570714,89041.0,89040.0,0.3289476]
[1740546663449,0.46954576,89041.0,89040.0,0.0008476]
[1740546663620,0.3,89040.0,89029.0,0.0774]
[1740546663843,0.468482,89030.0,89029.0,0.0774]
[1740546664424,0.468493,89024.0,89023.0,0.4046]
[1740546665180,0.468493,89024.0,89023.0,0.3251]
[1740546665515,0.4897786,89024.0,89023.0,0.3251]
[1740546665969,0.60363556,89024.0,89023.0,0.3261]
[1740546666424,0.4897786,89024.0,89023.0,0.3261]
[1740546666661,0.4897786,89024.0,89023.0,0.3251]
[1740546666878,0.4897786,89024.0,89023.0,0.001]
[1740546667115,0.3,89019.0,89018.0,0.0769]
[1740546667374,0.3,89019.0,89018.0,0.402]
[1740546669071,0.3,89019.0,89018.0,0.405]
[1740546669072,0.301,89019.0,89018.0,0.405]
[1740546669359,0.3,89019.0,89018.0,0.402]
[1740546669904,0.301,89019.0,89018.0,0.405]
[1740546670584,0.301,89019.0,89018.0,0.402]
[1740546670585,0.3,89019.0,89018.0,0.402]
[1740546671915,0.301,89019.0,89018.0,0.405]
[1740546672116,0.302,89019.0,89018.0,0.407]
[1740546672976,0.3,89019.0,89018.0,0.402]
[1740546673177,0.302,89019.0,89018.0,0.575505]
[1740546673366,0.002,89019.0,89018.0,0.621905]
[1740546673525,0.001,89019.0,89018.0,0.618905]
[1740546673726,0.002,89019.0,89018.0,0.621905]
[1740546674898,0.001,89019.0,89018.0,0.619905]
[1740546675027,0.002,89019.0,89018.0,0.621905]
[1740546675448,0.001,89019.0,89018.0,0.619905]
[1740546675683,0.0212856,89024.0,89019.0,0.224671]
[1740546675845,0.0212856,89024.0,89023.0,0.245195]
[1740546676052,0.3,89038.0,89025.0,0.0787]
[1740546676366,0.3,89038.0,89026.0,0.4038]
[1740546676794,0.3,89039.0,89026.0,0.4038]
[1740546676993,0.3,89039.0,89026.0,0.4028]
[1740546677572,0.02191725,89039.0,89026.0,0.4048]
[1740546677780,0.224645,89030.0,89026.0,0.4134]
[1740546677998,0.168488,89027.0,89026.0,0.4134]
[1740546678598,0.168484,89029.0,89026.0,0.4134]
[1740546678796,0.168481,89031.0,89026.0,0.4134]
[1740546678999,0.168484,89030.0,89026.0,0.4114]
[1740546679170,0.168484,89030.0,89026.0,0.4134]
[1740546679366,0.46848,89032.0,89026.0,0.4164]
[1740546679570,0.168481,89031.0,89026.0,0.4144]
[1740546679792,0.168481,89031.0,89026.0,0.4194]
[1740546680153,0.3,89032.0,89026.0,0.4194]
[1740546680154,0.468479,89032.0,89026.0,0.4144]
[1740546680435,0.3,89032.0,89026.0,0.4194]
[1740546680651,0.3,89033.0,89026.0,0.4144]
[1740546681150,0.3,89033.0,89026.0,0.4184]
[1740546681646,0.3,89037.0,89026.0,0.4154]
[1740546681846,0.3,89035.0,89026.0,0.4184]
[1740546682056,0.468473,89035.0,89026.0,0.4184]
[1740546682231,0.224627,89037.0,89026.0,0.4114]
[1740546682432,0.3,89031.0,89026.0,0.4154]
[1740546682635,0.3,89031.0,89026.0,0.4174]
[1740546682819,0.3,89031.0,89026.0,0.4134]
[1740546683185,0.3,89031.0,89026.0,0.4144]
[1740546683358,0.3,89033.0,89026.0,0.4124]
[1740546683535,0.3,89035.0,89026.0,0.4124]
[1740546683740,0.3,89031.0,89026.0,0.4164]
[1740546684126,0.0212796,89039.0,89026.0,0.4164]
[1740546684321,0.468488,89027.0,89026.0,0.4164]
[1740546684523,0.468488,89027.0,89026.0,0.3271]
[1740546685172,0.468488,89027.0,89026.0,0.3301]
[1740546685373,0.5602658,89027.0,89026.0,0.3231]
[1740546685510,0.5602658,89027.0,89026.0,0.3261]
[1740546685711,0.5602658,89027.0,89026.0,0.3281]
[1740546685917,0.468488,89027.0,89026.0,0.3251]
[1740546686112,0.468488,89027.0,89026.0,0.3261]
[1740546686313,0.3,89027.0,89026.0,0.3261]
[1740546686515,0.3,89027.0,89026.0,0.3281]
[1740546686727,0.3,89027.0,89026.0,0.3311]
[1740546686974,0.468488,89027.0,89026.0,0.3251]
[1740546687486,0.468488,89027.0,89026.0,0.3301]
[1740546687686,0.468488,89027.0,89026.0,0.007]
[1740546688409,0.468488,89027.0,89026.0,0.005]
[1740546688554,0.168494,89024.0,89021.0,0.0771]
[1740546688893,0.3,89023.0,89021.0,0.0771]
[1740546689481,0.468496,89023.0,89021.0,0.0771]
[1740546689682,0.52464,89031.0,89021.0,0.0771]
[1740546689908,0.3,89029.0,89021.0,0.0771]
[1740546690041,0.3,89029.0,89018.0,0.0004241]
[1740546690042,0.224612,89043.0,89029.0,0.0832]
[1740546690253,0.168479,89032.0,89029.0,0.0832]
[1740546690475,0.3,89055.0,89029.0,0.0832]
[1740546690701,0.06787,89054.0,89029.0,0.0832]
[1740546690860,0.468482,89030.0,89029.0,0.0832]
[1740546691712,0.3,89030.0,89029.0,0.0832]
[1740546692079,0.3000659,89030.0,89029.0,0.0832]
[1740546692356,0.3000659,89030.0,89029.0,0.0852]
[1740546692968,0.3000659,89030.0,89029.0,0.0832]
[1740546693157,0.3000659,89030.0,89029.0,0.0862]
[1740546693368,0.3000659,89030.0,89029.0,0.0902]
[1740546694576,0.4685479,89030.0,89029.0,0.0902]
[1740546695782,0.4685479,89030.0,89029.0,0.0872]
[1740546696020,0.4685479,89030.0,89029.0,0.0832]
[1740546696203,0.4685479,89030.0,89029.0,0.0862]
[1740546696716,0.3000659,89030.0,89029.0,0.0832]
[1740546697219,0.3000659,89030.0,89029.0,0.0872]
[1740546697580,0.3000659,89030.0,89029.0,0.0892]
[1740546698187,0.14468077,89032.0,89029.0,0.0852]
[1740546698524,0.14468077,89032.0,89029.0,0.08861978]
[1740546698737,0.14468077,89032.0,89029.0,0.08561978]
[1740546699099,0.14468077,89032.0,89029.0,0.08761978]
[1740546699298,0.14468077,89032.0,89029.0,0.08661978]
[1740546700127,0.14468077,89032.0,89029.0,0.08861978]
[1740546700332,0.16848,89031.0,89029.0,0.08861978]
[1740546700718,0.168482,89030.0,89029.0,0.08861978]
[1740546701123,0.22464,89032.0,89029.0,0.08861978]
[1740546701124,0.00853967,89040.0,89029.0,0.08861978]
[1740546701326,0.168479,89032.0,89029.0,0.08946798]
[1740546701537,0.168481,89031.0,89029.0,0.08646798]
[1740546701741,0.168481,89031.0,89029.0,0.09046798]
[1740546702144,0.168481,89031.0,89029.0,0.08446798]
[1740546702351,0.168481,89031.0,89029.0,0.08746798]
[1740546703051,0.168481,89031.0,89029.0,0.09146798]
[1740546703452,0.00853967,89040.0,89029.0,0.09146798]
[1740546703796,0.168455,89045.0,89031.0,0.0762]
[1740546704015,0.168448,89049.0,89031.0,0.0762]
[1740546704245,0.0004241,89056.0,89034.0,0.083]
[1740546704511,0.0004241,89056.0,89032.0,0.3231]
[1740546704512,0.0004241,89056.0,89036.0,0.083]
[1740546704751,0.00843603,89054.0,89033.0,0.08457232]
[1740546704925,0.00843603,89054.0,89038.0,0.083]
[1740546705127,0.0004241,89056.0,89038.0,0.224621]
[1740546705328,0.0004241,89056.0,89040.0,0.168462]
[1740546705541,0.0004241,89056.0,89038.0,0.224621]
[1740546705542,0.0004241,89056.0,89041.0,0.168461]
[1740546705751,0.0004241,89056.0,89042.0,0.0781]
[1740546706352,0.16844,89053.0,89042.0,0.0781]
[1740546706861,0.16844,89053.0,89042.0,0.0801]
[1740546707484,0.16844,89053.0,89042.0,0.0781]
[1740546707688,0.02635721,89054.0,89042.0,0.0811]
[1740546707917,0.168457,89043.0,89042.0,0.0811]
[1740546708265,0.168457,89043.0,89042.0,0.0841]
[1740546708400,0.168457,89043.0,89042.0,0.0811]
[1740546708598,0.224606,89045.0,89042.0,0.0811]
[1740546708867,0.16845,89048.0,89042.0,0.0851]
[1740546709048,0.168447,89049.0,89042.0,0.0781]
[1740546709253,0.02696854,89054.0,89042.0,0.0831]
[1740546709511,0.168457,89043.0,89042.0,0.0831]
[1740546709735,0.168457,89043.0,89042.0,0.0781]
[1740546709918,0.168457,89043.0,89042.0,0.0821]
[1740546710168,0.168457,89043.0,89042.0,0.0861]
[1740546710339,0.3,89045.0,89042.0,0.0861]
[1740546710749,0.468454,89045.0,89042.0,0.0821]
[1740546710946,0.468454,89045.0,89042.0,0.0861]
[1740546711149,0.468454,89045.0,89042.0,0.0821]
[1740546711565,0.468454,89045.0,89042.0,0.0831]
[1740546711697,0.468454,89045.0,89042.0,0.0821]
[1740546712157,0.468454,89045.0,89042.0,0.0871]
[1740546712317,0.468454,89045.0,89042.0,0.0831]
[1740546712519,0.168457,89043.0,89042.0,0.0871]
[1740546713154,0.3,89047.0,89042.0,0.0831]
[1740546713332,0.168455,89045.0,89042.0,0.0831]
[1740546713660,0.168456,89044.0,89042.0,0.0861]
[1740546713860,0.168457,89043.0,89042.0,0.0861]
[1740546714253,0.168457,89043.0,89042.0,0.0781]
[1740546714426,0.468453,89046.0,89042.0,0.0781]
[1740546714634,0.168454,89045.0,89042.0,0.0831]
[1740546714782,0.3,89048.0,89042.0,0.0831]
[1740546715125,0.168457,89043.0,89042.0,0.0831]
[1740546715345,0.168457,89043.0,89042.0,0.0781]
[1740546715546,0.168457,89043.0,89042.0,0.0801]
[1740546715746,0.168457,89043.0,89042.0,0.0851]
[1740546715913,0.168457,89043.0,89042.0,0.0781]
[1740546716229,0.168457,89043.0,89042.0,0.0871]
[1740546719341,0.468457,89043.0,89042.0,0.0871]
[1740546719771,0.468457,89043.0,89042.0,0.0831]
[1740546720178,0.3,89043.0,89042.0,0.0871]
[1740546720555,0.3,89043.0,89042.0,0.0831]
[1740546720766,0.3,89043.0,89042.0,0.0781]
[1740546720970,0.3,89043.0,89042.0,0.0821]
[1740546721172,0.3,89043.0,89042.0,0.0871]
[1740546721373,0.3,89043.0,89042.0,0.0821]
[1740546721811,0.3,89043.0,89042.0,0.0871]
[1740546722177,0.3,89043.0,89042.0,0.0831]
[1740546722372,0.3,89043.0,89042.0,0.0871]
[1740546724691,0.3,89043.0,89042.0,0.09525365]
[1740546724886,0.3,89043.0,89042.0,0.0871]
[1740546725552,0.3,89043.0,89042.0,0.09525365]
[1740546725726,0.3,89043.0,89042.0,0.0871]
[1740546726718,0.468457,89043.0,89042.0,0.0871]
[1740546727345,0.168457,89043.0,89042.0,0.0871]
[1740546727517,0.0004242,89053.0,89042.0,0.0821]
[1740546727745,0.0004242,89053.0,89043.0,0.00815247]
[1740546727942,0.168455,89045.0,89043.0,0.00815247]
[1740546728574,0.168455,89045.0,89042.0,0.0781]
[1740546728766,0.168455,89045.0,89043.0,0.01015247]
[1740546728945,0.168455,89045.0,89043.0,0.002]
[1740546729152,0.168455,89045.0,89042.0,0.0781]
[1740546729374,0.168456,89044.0,89043.0,0.00815247]
[1740546729693,0.168456,89044.0,89043.0,0.01215247]
[1740546729994,0.168456,89044.0,89042.0,0.0781]
[1740546730314,0.168456,89044.0,89042.0,0.0821]
[1740546730493,0.168456,89044.0,89043.0,0.00815247]
[1740546730690,0.168456,89044.0,89043.0,0.01315247]
[1740546730909,0.168457,89043.0,89042.0,0.0821]
[1740546731259,0.168457,89043.0,89042.0,0.09025365]
[1740546731667,0.168457,89043.0,89042.0,0.09125365]
[1740546732089,0.168457,89043.0,89042.0,0.08625365]
[1740546732611,0.168457,89043.0,89037.0,0.0096]
[1740546732612,0.168469,89037.0,89036.0,0.27061241]
[1740546732814,0.25867023,89043.0,89042.0,0.004]
[1740546732815,0.50251723,89043.0,89042.0,0.004]
[1740546733430,0.168476,89033.0,89029.0,0.00126798]
[1740546734635,0.168476,89033.0,89032.0,0.0038484]
[1740546734834,0.168476,89033.0,89032.0,0.0008484]
[1740546735249,0.468476,89033.0,89032.0,0.0038484]
[1740546735455,0.468476,89033.0,89032.0,0.0008484]
[1740546735654,0.468476,89033.0,89032.0,0.0028484]
[1740546735910,0.58233296,89033.0,89032.0,0.0028484]
[1740546736117,0.58233296,89033.0,89032.0,0.0008484]
[1740546736492,0.58233296,89033.0,89032.0,0.0018484]
[1740546736895,0.58233296,89033.0,89032.0,0.0038484]
[1740546737098,0.58233296,89033.0,89032.0,0.0018484]
[1740546737423,0.58233296,89033.0,89032.0,0.0038484]
[1740546737764,0.168476,89033.0,89032.0,0.0038484]
[1740546737925,0.168476,89033.0,89032.0,0.0028484]
[1740546738124,0.168482,89030.0,89029.0,0.00026798]
[1740546738292,0.2527206,89030.0,89029.0,0.00026798]
[1740546739865,0.5527206,89030.0,89029.0,0.00126798]
[1740546740347,0.468482,89030.0,89029.0,0.00126798]
[1740546740912,0.47706499,89030.0,89029.0,0.00226798]
[1740546742286,0.168503,89019.0,89012.0,0.0785]
[1740546742468,0.168503,89019.0,89018.0,0.00050886]
[1740546743073,0.168503,89019.0,89018.0,0.00910121]
[1740546743235,0.168503,89019.0,89018.0,0.00050886]
[1740546743799,0.169503,89019.0,89018.0,0.00150886]
[1740546744401,0.169503,89019.0,89018.0,0.00650886]
[1740546744607,0.169503,89019.0,89018.0,0.00550886]
[1740546744809,0.168503,89019.0,89018.0,0.00050886]
[1740546745060,0.169503,89019.0,89018.0,0.00150886]
[1740546745238,0.169503,89019.0,89018.0,0.00650886]
[1740546750154,0.168503,89019.0,89018.0,0.00650886]
[1740546752085,0.468503,89019.0,89018.0,0.00650886]
[1740546752841,0.3,89019.0,89018.0,0.00650886]
[1740546753030,0.3,89019.0,89018.0,0.00550886]
[1740546753180,0.3,89019.0,89018.0,0.00050886]
[1740546753388,0.469503,89019.0,89018.0,0.00250886]
[1740546753607,0.469503,89019.0,89018.0,0.00750886]
[1740546754428,0.169503,89019.0,89018.0,0.00750886]
[1740546757327,0.001,89019.0,89018.0,0.00750886]
[1740546757537,0.169503,89019.0,89018.0,0.00750886]
[1740546770714,0.3,89019.0,89018.0,0.00750886]
[1740546770989,0.468503,89019.0,89018.0,0.00750886]
[1740546774203,0.4693514,89019.0,89018.0,0.00250886]
[1740546775002,0.4693514,89019.0,89018.0,0.00050886]
[1740546775704,0.4693514,89019.0,89018.0,0.00250886]
[1740546776031,0.4693514,89019.0,89018.0,0.00550886]
[1740546776227,0.4693514,89019.0,89018.0,0.00250886]
[1740546776420,0.4693514,89019.0,89018.0,0.00650886]
[1740546777125,0.4693514,89019.0,89018.0,0.00750886]
[1740546777482,0.4693514,89019.0,89018.0,0.01050886]
[1740546778719,0.4693514,89019.0,89018.0,0.00750886]
[1740546778923,0.4693514,89019.0,89018.0,0.00050886]
[1740546779120,0.4693514,89019.0,89018.0,0.00350886]
[1740546779384,0.4693514,89019.0,89018.0,0.00150886]
[1740546779584,0.4693514,89019.0,89018.0,0.00050886]
[1740546779823,0.4693514,89019.0,89018.0,0.00250886]
[1740546782699,0.4693514,89019.0,89018.0,0.00050886]
[1740546782899,0.4693514,89019.0,89018.0,0.00150886]
[1740546783091,0.4693514,89019.0,89018.0,0.00250886]
[1740546783248,0.4693514,89019.0,89018.0,0.00150886]
[1740546783805,0.4693514,89019.0,89018.0,0.00250886]
[1740546785517,0.168527,89006.0,89005.0,0.0755]
[1740546785661,0.168527,89006.0,89004.0,0.0462]
[1740546785662,0.468529,89005.0,89004.0,0.00012596]
[1740546786045,0.468577,88980.0,88979.0,0.25]
[1740546786214,0.3,88979.0,88978.0,0.0009137]
[1740546786386,0.03208128,89005.0,88982.0,0.047]
[1740546786595,0.00848423,89005.0,88987.0,0.047]
[1740546786816,0.0008484,89019.0,89006.0,0.047]
[1740546787023,0.02478581,89019.0,89006.0,0.047]
[1740546787216,0.168526,89007.0,89006.0,0.046]
[1740546787420,0.468526,89007.0,89006.0,0.046]
[1740546788076,0.468526,89007.0,89006.0,0.0460659]
[1740546788421,0.168526,89007.0,89006.0,0.0460659]
[1740546788841,0.168526,89007.0,89006.0,0.1245659]
[1740546789880,0.168526,89007.0,89006.0,0.1265659]
[1740546790465,0.166926,89007.0,89006.0,0.1285659]
[1740546791185,0.166926,89007.0,89006.0,0.1325659]
[1740546791746,0.00838871,89015.0,89006.0,0.1285659]
[1740546791956,0.2255164,89021.0,89007.0,0.0822]
[1740546792159,0.0008484,89021.0,89007.0,0.0822]
[1740546792362,0.3,89018.0,89007.0,0.0822]
[1740546792580,0.0008484,89021.0,89007.0,0.0822]
[1740546792756,0.168524,89008.0,89007.0,0.0822]
[1740546793498,0.168524,89008.0,89007.0,0.0832]
[1740546793909,0.168524,89008.0,89007.0,0.0822]
[1740546794313,0.168524,89008.0,89007.0,0.0842]
[1740546794614,0.168524,89008.0,89007.0,0.0872]
[1740546795239,0.168524,89008.0,89007.0,0.0842]
[1740546795401,0.168524,89008.0,89007.0,0.0872]
[1740546795646,0.168524,89008.0,89007.0,0.0852]
[1740546795789,0.168524,89008.0,89007.0,0.0872]
[1740546796199,0.168524,89008.0,89007.0,0.0852]
[1740546796425,0.168524,89008.0,89007.0,0.0872]
[1740546796654,0.224691,89011.0,89007.0,0.0842]
[1740546796850,0.168524,89008.0,89007.0,0.0842]
[1740546797010,0.230315,89008.0,89007.0,0.007]
[1740546797210,0.230315,89008.0,89007.0,0.003]